bitfinex/quotes_SOLUSD_20250108
["timestamp","ask_amount","ask_price","bid_price","bid_amount"]
[1736316104312,0.12549,196.42,196.39,5.0]
[1736316104519,0.12549,196.42,196.41,5.0]
[1736316105010,0.12549,196.42,196.41,33.77688283]
[1736316106345,0.12549,196.42,196.4,9.99999883]
[1736316106723,0.12549,196.42,196.41,5.0]
[1736316106922,0.12549,196.42,196.4,4.99999883]
[1736316107129,0.12549,196.42,196.41,9.99999883]
[1736316109346,0.12549,196.42,196.41,4.99999883]
[1736316109652,0.12549,196.42,196.41,9.99999883]
[1736316109815,0.12549,196.42,196.41,4.99999883]
[1736316110023,0.12549,196.42,196.4,5.0]
[1736316110024,0.12549,196.42,196.4,4.99999883]
[1736316110238,0.12549,196.42,196.39,4.99999883]
[1736316110929,0.12549,196.42,196.39,9.99999883]
[1736316111441,0.12549,196.42,196.38,9.99999883]
[1736316111645,0.12549,196.42,196.39,4.99999883]
[1736316113947,0.12549,196.39,196.36,9.99999883]
[1736316114245,0.12549,196.39,196.34,9.99999883]
[1736316114748,0.12549,196.39,196.35,4.99999883]
[1736316114943,0.12549,196.39,196.36,4.99999883]
[1736316115539,0.12549,196.39,196.35,9.99999883]
[1736316116376,0.12549,196.39,196.33,9.99999883]
[1736316116535,0.12549,196.39,196.33,4.99999883]
[1736316116847,0.12549,196.39,196.32,4.99999883]
[1736316117761,0.12549,196.39,196.33,4.99999883]
[1736316118555,50.0,196.4,196.33,4.99999883]
[1736316118556,49.8315,196.4,196.33,4.99999883]
[1736316120560,30.0,196.42,196.35,5.0]
[1736316120726,20.0,196.37,196.33,9.99999883]
[1736316120926,2.46,196.36,196.33,4.99999883]
[1736316121127,2.46,196.36,196.33,9.99999883]
[1736316121347,20.12549,196.35,196.32,4.99999883]
[1736316121746,20.12549,196.35,196.33,4.99999883]
[1736316122055,0.12549,196.35,196.33,9.99999883]
[1736316122430,0.12549,196.35,196.32,4.99999883]
[1736316123352,20.12549,196.35,196.32,9.99999883]
[1736316124255,20.12549,196.35,196.33,5.0]
[1736316124638,20.12549,196.35,196.33,9.99999883]
[1736316124835,30.0,196.41,196.34,33.77688283]
[1736316125063,2.46,196.4,196.37,5.0]
[1736316125235,0.12549,196.42,196.37,5.0]
[1736316125435,2.46,196.41,196.37,5.0]
[1736316125631,30.0,196.45,196.38,5.0]
[1736316125842,2.46,196.44,196.4,5.0]
[1736316126044,20.12549,196.42,196.39,4.99999883]
[1736316126467,0.12549,196.42,196.39,9.99999883]
[1736316126670,20.12549,196.42,196.39,4.99999883]
[1736316126872,20.12549,196.42,196.38,4.99999883]
[1736316127035,20.12549,196.42,196.37,5.0]
[1736316127036,20.12549,196.42,196.37,9.99999883]
[1736316127237,20.12549,196.42,196.38,4.99999883]
[1736316127437,0.12549,196.4,196.36,4.99999883]
[1736316127762,0.12549,196.4,196.36,9.99999883]
[1736316127949,0.12549,196.39,196.37,4.99999883]
[1736316128473,0.12549,196.39,196.38,5.0]
[1736316128647,0.12549,196.39,196.38,4.99999883]
[1736316129269,0.12549,196.39,196.38,9.99999883]
[1736316129636,0.12549,196.39,196.38,4.99999883]
[1736316130590,0.12549,196.39,196.38,9.99999883]
[1736316131382,0.12549,196.39,196.36,4.99999883]
[1736316131583,0.12549,196.37,196.36,4.99999883]
[1736316132278,0.12549,196.37,196.36,9.99999883]
[1736316132456,0.12549,196.37,196.36,4.99999883]
[1736316133282,2.58549,196.37,196.35,6.55979883]
[1736316134175,2.58549,196.37,196.36,4.99999883]
[1736316134375,2.58549,196.37,196.36,9.99999883]
[1736316134756,2.58549,196.37,196.36,4.99999883]
[1736316135280,2.58549,196.37,196.36,9.99999883]
[1736316136383,2.58549,196.37,196.35,11.55979883]
[1736316136562,2.58549,196.37,196.36,4.99999883]
[1736316137261,2.58549,196.37,196.36,9.99999883]
[1736316137458,2.58549,196.37,196.36,5.0]
[1736316137661,2.58549,196.37,196.36,9.99999883]
[1736316138185,2.58549,196.37,196.35,6.55979883]
[1736316138787,2.58549,196.37,196.35,11.55979883]
[1736316139087,2.58549,196.37,196.35,6.55979883]
[1736316139290,2.58549,196.37,196.35,11.55979883]
[1736316139484,2.58549,196.37,196.36,28.776884]
[1736316139675,2.58549,196.37,196.36,33.77688283]
[1736316140369,2.46,196.45,196.44,5.0]
[1736316140881,2.46,196.46,196.45,5.0]
[1736316141384,0.12549,196.44,196.42,9.99999883]
[1736316141563,0.12549,196.44,196.4,4.99999883]
[1736316141771,0.12549,196.44,196.39,4.99999883]
[1736316142170,0.12549,196.44,196.41,5.0]
[1736316142372,0.12549,196.42,196.38,5.0]
[1736316142699,0.12549,196.42,196.37,16.17859883]
[1736316143574,0.12549,196.44,196.39,5.0]
[1736316143774,0.12549,196.44,196.37,6.1786]
[1736316143775,0.12549,196.44,196.4,9.99999883]
[1736316144086,20.12549,196.44,196.43,5.0]
[1736316144573,0.12549,196.45,196.43,5.0]
[1736316144781,0.12549,196.41,196.38,5.0]
[1736316145181,0.12549,196.41,196.37,16.17859883]
[1736316145783,0.12549,196.39,196.37,4.99999883]
[1736316146094,0.12549,196.39,196.36,9.99999883]
[1736316146295,30.12549,196.39,196.35,11.55979883]
[1736316146497,30.12549,196.39,196.34,5.0]
[1736316147295,20.0,196.36,196.33,9.99999883]
[1736316147597,2.56549,196.35,196.33,5.0]
[1736316147901,2.56549,196.35,196.34,9.99999883]
[1736316148497,2.56549,196.35,196.34,33.77688283]
[1736316153407,37.87239485,196.48,196.42,5.0]
[1736316153785,2.44,196.47,196.42,5.0]
[1736316154296,30.12549,196.46,196.42,5.0]
[1736316154793,0.12549,196.43,196.42,33.77688283]
[1736316155118,10.31239485,196.49,196.48,5.0]
[1736316155619,10.43788485,196.49,196.48,5.0]
[1736316155783,7.99788485,196.49,196.48,9.99999883]
[1736316156009,0.12549,196.49,196.48,33.77688283]
[1736316158393,0.12549,196.48,196.47,5.0]
[1736316158594,0.12549,196.48,196.46,9.99999883]
[1736316158786,0.12549,196.48,196.46,5.0]
[1736316159107,0.12549,196.49,196.46,5.0]
[1736316159407,2.44,196.51,196.5,5.0]
[1736316159601,2.56549,196.51,196.5,5.0]
[1736316159905,2.56549,196.51,196.5,9.99999883]
[1736316160515,0.12549,196.51,196.5,9.99999883]
[1736316160719,0.12549,196.51,196.5,33.77688283]
[1736316164082,19.53083505,196.62,196.58,5.0]
[1736316164287,2.44,196.61,196.58,5.0]
[1736316164812,22.44,196.6,196.59,5.0]
[1736316165311,0.12549,196.6,196.59,5.0]
[1736316165899,20.12549,196.6,196.59,28.776884]
[1736316166915,0.12549,196.6,196.59,33.77688283]
[1736316167501,0.12549,196.61,196.6,23.776884]
[1736316168025,0.12549,196.61,196.6,4.99999883]
[1736316168520,0.12549,196.61,196.6,5.0]
[1736316169509,0.12549,196.62,196.6,5.0]
[1736316172131,0.12549,196.62,196.61,5.0]
[1736316172922,20.12549,196.62,196.61,5.0]
[1736316173499,0.12549,196.63,196.62,23.776884]
[1736316173828,0.12549,196.63,196.62,33.77688283]
[1736316174033,2.44,196.68,196.67,5.0]
[1736316174241,20.0,196.67,196.65,5.0]
[1736316174404,0.12549,196.67,196.65,9.99999883]
[1736316174607,0.12549,196.67,196.66,5.0]
[1736316176429,0.12549,196.67,196.64,9.99999883]
[1736316176430,20.12549,196.67,196.64,9.99999883]
[1736316176726,0.12549,196.64,196.62,5.0]
[1736316177137,0.12549,196.64,196.63,5.0]
[1736316177425,0.12549,196.64,196.61,5.0]
[1736316177624,0.12549,196.62,196.61,5.0]
[1736316178018,0.12549,196.62,196.61,9.99999883]
[1736316178727,0.12549,196.62,196.61,5.0]
[1736316179728,0.12549,196.62,196.61,9.99999883]
[1736316180628,20.0,196.65,196.63,5.0]
[1736316180933,0.12549,196.64,196.63,33.77688283]
[1736316183943,0.12549,196.64,196.62,9.99999883]
[1736316184232,0.12549,196.64,196.63,5.0]
[1736316184453,0.12549,196.64,196.62,4.99999883]
[1736316184618,0.12549,196.64,196.63,5.0]
[1736316186219,0.12549,196.64,196.63,9.99999883]
[1736316187016,15.73843751,196.73,196.72,5.0]
[1736316187215,15.73843751,196.73,196.72,9.99999883]
[1736316187411,15.73843751,196.73,196.72,33.77688283]
[1736316187630,15.86392751,196.73,196.72,33.77688283]
[1736316188025,2.44,196.76,196.75,9.99999883]
[1736316188218,30.0,196.86,196.79,5.0]
[1736316188546,2.44,196.85,196.8,9.99999883]
[1736316188835,2.44,196.85,196.81,9.99999883]
[1736316189017,0.12549,196.84,196.81,9.99999883]
[1736316189223,20.0,196.85,196.83,5.0]
[1736316189439,2.44,196.84,196.83,5.0]
[1736316189623,2.56549,196.84,196.83,5.0]
[1736316190241,2.56549,196.84,196.83,9.99999883]
[1736316191520,0.12549,196.84,196.83,9.99999883]
[1736316191919,0.12549,196.84,196.83,33.77688283]
[1736316193530,30.0,196.97,196.92,5.0]
[1736316193741,17.87458555,196.93,196.92,9.99999883]
[1736316194044,15.56007555,196.93,196.92,9.99999883]
[1736316194241,0.12549,196.92,196.89,9.99999883]
[1736316194424,0.12549,196.89,196.87,5.0]
[1736316194624,0.12549,196.89,196.86,4.99999883]
[1736316194625,0.12549,196.87,196.86,5.0]
[1736316195438,0.12549,196.87,196.86,9.99999883]
[1736316195638,0.12549,196.87,196.86,5.0]
[1736316195950,0.12549,196.87,196.86,9.99999883]
[1736316196838,0.12549,196.87,196.86,33.77688283]
[1736316197035,20.0,196.89,196.88,5.0]
[1736316197354,20.0,196.89,196.88,9.99999883]
[1736316197641,0.12549,196.89,196.88,33.77688283]
[1736316198046,0.12549,196.89,196.87,5.0]
[1736316198047,0.12549,196.88,196.87,5.0]
[1736316198260,0.12549,196.88,196.84,5.0]
[1736316198427,20.12549,196.88,196.86,5.0]
[1736316198617,0.12549,196.85,196.84,5.0]
[1736316199326,0.12549,196.88,196.85,5.0]
[1736316200023,20.12549,196.86,196.85,5.0]
[1736316200224,0.12549,196.85,196.83,9.99999883]
[1736316200437,20.12549,196.86,196.82,5.0]
[1736316200438,0.12549,196.83,196.82,5.0]
[1736316200644,0.12549,196.83,196.82,9.99999883]
[1736316201340,22.44,196.86,196.85,5.0]
[1736316201657,22.44,196.86,196.85,33.77688283]
[1736316201658,20.0,196.86,196.85,33.77688283]
[1736316202032,0.12549,196.86,196.85,33.77688283]
[1736316203050,0.12549,196.86,196.85,35.41558283]
[1736316207752,2.44,196.94,196.92,5.0]
[1736316207960,0.12549,196.9,196.89,5.0]
[1736316208457,20.12549,196.91,196.9,5.0]
[1736316208656,20.12549,196.9,196.87,5.0]
[1736316208865,20.12549,196.9,196.86,9.99999883]
[1736316210249,20.12549,196.9,196.89,5.0]
[1736316210757,15.43458555,196.93,196.92,5.0]
[1736316212545,15.56007555,196.93,196.92,9.99999883]
[1736316213256,15.56007555,196.93,196.92,33.77688283]
[1736316213471,0.12549,196.93,196.92,33.77688283]
[1736316213760,30.0,197.06,197.0,5.0]
[1736316214064,2.44,197.02,197.01,5.0]
[1736316214650,0.12549,197.01,196.99,9.99999883]
[1736316214864,0.12549,197.01,197.0,5.0]
[1736316215241,0.12549,197.01,197.0,9.99999883]
[1736316215442,0.12549,197.01,197.0,5.0]
[1736316217466,0.12549,197.01,196.99,5.0]
[1736316217644,0.12549,197.01,197.0,5.0]
[1736316218054,0.12549,197.01,196.99,5.0]
[1736316218863,0.12549,196.96,196.94,9.99999883]
[1736316219047,0.12549,196.96,196.95,33.77688283]
[1736316219248,0.12549,196.98,196.95,9.99999883]
[1736316219567,0.12549,196.98,196.97,5.0]
[1736316219770,2.44,197.02,196.97,33.77688283]
[1736316220065,0.12549,197.02,197.01,4.99999883]
[1736316220460,30.0,197.11,197.07,5.0]
[1736316220645,32.44,197.1,197.04,9.99999883]
[1736316220854,0.12549,197.03,197.02,5.0]
[1736316221247,2.56549,197.03,197.02,9.99999883]
[1736316221458,2.56549,197.03,197.01,5.0]
[1736316222567,2.56549,197.03,196.99,33.77688283]
[1736316222867,0.12549,197.01,196.99,5.0]
[1736316223244,0.12549,196.99,196.98,5.0]
[1736316223443,2.56549,196.99,196.98,5.0]
[1736316224344,2.56549,196.99,196.98,28.776884]
[1736316224545,2.56549,196.99,196.98,5.0]
[1736316224755,2.56549,196.99,196.96,5.0]
[1736316224939,2.56549,196.99,196.98,5.0]
[1736316225849,2.56549,196.99,196.98,33.77688283]
[1736316227061,20.0,197.05,197.04,5.0]
[1736316227266,0.12549,197.04,197.03,5.0]
[1736316228273,2.44,197.05,197.03,5.0]
[1736316228573,2.56549,197.05,197.04,5.0]
[1736316229381,0.12549,197.05,197.04,5.0]
[1736316233171,0.12549,197.04,197.03,5.0]
[1736316233857,0.12549,197.04,197.03,9.99999883]
[1736316235481,0.12549,197.04,197.03,5.0]
[1736316235981,0.12549,197.04,197.03,9.99999883]
[1736316237482,2.44,197.06,197.05,5.0]
[1736316238862,2.56549,197.06,197.05,5.0]
[1736316239585,0.12549,197.06,197.05,28.776884]
[1736316239880,0.12549,197.06,197.05,33.77688283]
[1736316240679,0.12549,197.06,197.05,9.99999883]
[1736316242177,2.44,197.13,197.11,9.99999883]
[1736316242365,0.12549,197.12,197.11,9.99999883]
[1736316243294,0.12549,197.12,197.11,33.77688283]
[1736316243665,0.12549,197.12,197.11,5.0]
[1736316244290,0.12549,197.12,197.11,9.99999883]
[1736316245286,20.0,197.17,197.16,5.0]
[1736316245583,0.12549,197.14,197.12,5.0]
[1736316245787,0.12549,197.12,197.09,5.0]
[1736316246101,0.12549,197.1,197.08,5.0]
[1736316246287,2.56549,197.1,197.07,5.0]
[1736316246491,0.12549,197.08,197.07,5.0]
[1736316246879,20.12549,197.08,197.07,5.0]
[1736316247074,20.0,197.07,197.04,5.0]
[1736316247275,0.12549,197.04,197.02,5.0]
[1736316247594,0.12549,197.04,197.03,9.99999883]
[1736316247781,0.12549,197.04,197.02,5.0]
[1736316248088,20.12549,196.99,196.98,5.0]
[1736316248272,20.12549,196.97,196.96,5.0]
[1736316248895,0.12549,196.97,196.96,9.99999883]
[1736316249190,0.12549,196.97,196.96,5.0]
[1736316249497,0.12549,196.97,196.96,9.99999883]
[1736316249697,0.12549,196.97,196.96,33.77688283]
[1736316251197,2.44,196.99,196.98,9.99999883]
[1736316251494,30.0,197.12,197.07,5.0]
[1736316251699,2.44,197.11,197.08,5.0]
[1736316252003,20.12549,197.09,197.08,5.0]
[1736316252197,0.12549,197.09,197.08,5.0]
[1736316252393,0.12549,197.09,197.05,4.99999883]
[1736316252394,2.44,197.11,197.1,5.0]
[1736316252696,20.0,197.1,197.09,5.0]
[1736316252895,0.12549,197.1,197.09,5.0]
[1736316253101,2.44,197.1,197.07,5.0]
[1736316253279,0.12549,197.08,197.07,5.0]
[1736316254896,0.12549,197.08,197.06,5.0]
[1736316255401,0.12549,197.06,197.05,5.0]
[1736316255580,20.12549,197.06,197.05,5.0]
[1736316256300,20.12549,197.06,197.02,5.0]
[1736316256301,20.0,197.04,197.02,5.0]
[1736316256478,22.56549,197.03,197.02,5.0]
[1736316257298,2.56549,197.03,197.02,9.99999883]
[1736316257599,20.12549,197.02,197.01,5.0]
[1736316258102,20.12549,197.02,196.99,5.0]
[1736316258285,20.12549,196.98,196.97,5.0]
[1736316258480,0.12549,196.97,196.96,5.0]
[1736316259008,20.12549,196.97,196.96,5.0]
[1736316260585,0.12549,196.97,196.96,9.99999883]
[1736316261188,2.56549,196.97,196.96,9.99999883]
[1736316261602,2.56549,196.97,196.96,5.0]
[1736316262213,2.56549,196.97,196.96,9.99999883]
[1736316262591,2.56549,196.97,196.96,5.0]
[1736316262988,2.56549,196.97,196.96,33.77688283]
[1736316263195,20.0,197.0,196.99,5.0]
[1736316263489,2.56549,197.0,196.99,5.0]
[1736316263884,0.12549,197.0,196.99,28.776884]
[1736316264092,0.12549,197.0,196.99,33.77688283]
[1736316265199,0.12549,197.0,196.99,35.32978283]
[1736316271889,0.12549,197.0,196.99,9.99999883]
[1736316272107,0.12549,197.0,196.99,5.0]
[1736316272812,0.12549,197.0,196.99,9.99999883]
[1736316274412,0.12549,197.0,196.99,5.0]
[1736316274607,0.12549,197.0,196.99,9.99999883]
[1736316275203,20.12549,196.99,196.97,9.99999883]
[1736316275398,20.12549,196.99,196.96,6.2056]
[1736316275399,20.12549,196.97,196.96,5.0]
[1736316276611,20.12549,196.97,196.96,9.99999883]
[1736316276913,20.12549,196.97,196.96,5.0]
[1736316278502,20.0,196.98,196.96,5.0]
[1736316278699,22.44,196.98,196.97,9.99999883]
[1736316278998,2.44,196.98,196.97,33.77688283]
[1736316279490,2.56549,196.98,196.97,33.77688283]
[1736316279893,0.12549,196.98,196.97,33.77688283]
[1736316288407,0.12549,196.98,196.97,9.99999883]
[1736316289017,0.12549,196.98,196.97,33.77688283]
[1736316290614,30.0,197.09,197.07,5.0]
[1736316290812,7.87239485,197.11,197.07,5.0]
[1736316291016,2.56549,197.1,197.07,5.0]
[1736316291720,0.12549,197.08,197.07,5.0]
[1736316291919,2.56549,197.08,197.07,5.0]
[1736316292520,0.12549,197.08,197.07,5.0]
[1736316292723,2.44,197.08,197.07,5.0]
[1736316292925,2.56549,197.08,197.07,5.0]
[1736316293416,0.12549,197.08,197.07,5.0]
[1736316293623,0.12549,197.08,197.07,9.99999883]
[1736316300022,0.12549,197.08,197.07,33.77688283]
[1736316300434,0.12549,197.08,197.07,9.99999883]
[1736316303717,0.12549,197.08,197.07,16.52219883]
[1736316306229,0.12549,197.08,197.07,9.99999883]
[1736316306431,0.12549,197.08,197.07,5.0]
[1736316306642,20.12549,197.07,197.05,5.0]
[1736316306822,20.12549,197.07,197.04,4.99999883]
[1736316306823,20.12549,197.05,197.02,5.0]
[1736316307057,0.12549,197.03,197.02,5.0]
[1736316307552,0.12549,197.03,197.02,9.99999883]
[1736316307762,0.12549,197.03,197.01,5.0]
[1736316308067,0.12549,197.03,197.02,4.99999883]
[1736316308244,20.12549,197.03,197.01,5.0]
[1736316308446,20.12549,197.03,197.02,5.0]
[1736316308647,20.12549,197.03,197.01,5.0]
[1736316309055,20.12549,197.03,197.02,5.0]
[1736316309232,20.12549,197.03,197.02,9.99999883]
[1736316309661,20.12549,197.03,197.01,9.99999883]
[1736316310437,20.12549,197.03,197.01,5.0]
[1736316310962,20.12549,197.03,197.02,9.99999883]
[1736316311157,20.12549,197.03,197.02,5.0]
[1736316312567,0.12549,197.03,197.02,5.0]
[1736316312874,20.0,197.06,197.03,5.0]
[1736316313164,0.12549,197.04,197.03,5.0]
[1736316313452,0.12549,197.04,197.03,9.99999883]
[1736316313676,0.12549,197.04,197.03,4.99999883]
[1736316313677,20.12549,197.04,197.03,4.99999883]
[1736316313838,20.12549,197.02,197.01,5.0]
[1736316314247,20.12549,197.02,197.01,9.99999883]
[1736316314448,0.12549,197.02,197.01,9.99999883]
[1736316315464,0.12549,197.01,197.0,9.99999883]
[1736316316148,0.12549,197.03,197.01,5.0]
[1736316317163,30.0,197.02,196.98,4.99999883]
[1736316317344,0.12549,196.92,196.87,9.99999883]
[1736316317545,20.12549,196.88,196.86,5.0]
[1736316317759,20.12549,196.86,196.85,9.99999883]
[1736316317960,0.12549,196.86,196.85,9.99999883]
[1736316319056,0.12549,196.86,196.85,33.77688283]
[1736316320451,9.999999,196.97,196.95,5.0]
[1736316320651,2.44,196.96,196.95,5.0]
[1736316320851,22.56549,196.96,196.95,5.0]
[1736316321461,20.12549,196.95,196.94,5.0]
[1736316321966,20.12549,196.95,196.93,9.99999883]
[1736316322344,20.12549,196.95,196.94,5.0]
[1736316322663,20.12549,196.95,196.94,9.99999883]
[1736316322865,20.12549,196.95,196.94,4.99999883]
[1736316323047,22.56549,196.95,196.93,5.0]
[1736316323566,22.56549,196.95,196.94,5.0]
[1736316327080,2.56549,196.95,196.94,9.99999883]
[1736316327247,30.0,197.04,197.0,5.0]
[1736316327444,2.44,197.03,197.02,5.0]
[1736316327883,22.56549,197.03,197.02,5.0]
[1736316328562,20.12549,196.99,196.98,4.99999883]
[1736316328968,20.12549,196.97,196.96,5.0]
[1736316329570,0.12549,196.97,196.96,5.0]
[1736316329786,0.12549,196.97,196.96,9.99999883]
[1736316331963,2.56549,196.97,196.96,9.99999883]
[1736316332272,2.56549,196.97,196.96,33.77688283]
[1736316332449,0.12549,196.97,196.96,39.86578283]
[1736316332651,30.0,197.08,197.05,5.0]
[1736316332864,2.44,197.07,197.05,5.0]
[1736316333168,0.12549,197.06,197.05,5.0]
[1736316333374,0.12549,197.06,197.04,5.0]
[1736316333573,20.12549,197.06,197.05,5.0]
[1736316333776,20.12549,197.05,197.04,5.0]
[1736316334279,22.56549,197.05,197.04,5.0]
[1736316334763,22.56549,197.05,197.04,9.99999883]
[1736316334962,2.56549,197.05,197.04,9.99999883]
[1736316335880,22.56549,197.05,197.04,9.99999883]
[1736316336575,22.56549,197.05,197.04,5.0]
[1736316337554,22.56549,197.05,197.04,9.99999883]
[1736316338770,2.56549,197.05,197.04,9.99999883]
[1736316339659,0.12549,197.05,197.04,9.99999883]
[1736316339860,2.56549,197.05,197.04,9.99999883]
[1736316340071,0.12549,197.05,197.04,39.97938283]
[1736316340258,2.44,197.08,197.04,39.97938283]
[1736316340259,2.44,197.08,197.07,5.0]
[1736316340460,0.12549,197.11,197.07,9.99999883]
[1736316340771,0.12549,197.09,197.08,5.0]
[1736316340976,0.12549,197.09,197.07,4.99999883]
[1736316341275,0.12549,197.09,197.06,9.99999883]
[1736316341503,0.12549,197.09,197.07,9.99999883]
[1736316341993,0.12549,197.09,197.07,4.99999883]
[1736316342178,0.12549,197.09,197.06,4.99999883]
[1736316342470,0.12549,197.09,197.05,5.0]
[1736316342672,0.12549,197.09,197.07,5.0]
[1736316343671,20.0,197.08,197.07,5.0]
[1736316343878,20.12549,197.08,197.07,5.0]
[1736316344680,0.12549,197.08,197.07,9.99999883]
[1736316344863,2.54549,197.08,197.07,9.99999883]
[1736316345056,0.12549,197.08,197.07,9.99999883]
[1736316345252,2.54549,197.08,197.07,9.99999883]
[1736316346066,0.12549,197.08,197.07,9.99999883]
[1736316346378,2.54549,197.08,197.07,9.99999883]
[1736316350160,22.54549,197.08,197.07,5.0]
[1736316350368,22.54549,197.08,197.06,4.99999883]
[1736316350369,20.12549,197.07,197.06,4.99999883]
[1736316350681,20.12549,197.07,197.05,9.99999883]
[1736316350868,0.12549,197.04,197.03,5.0]
[1736316351277,0.12549,197.04,197.03,9.99999883]
[1736316351666,0.12549,197.04,197.03,5.0]
[1736316352084,0.12549,197.04,197.0,4.99999883]
[1736316352289,0.12549,197.04,196.99,9.99999883]
[1736316352966,0.12549,197.04,197.0,4.99999883]
[1736316353172,0.12549,197.04,197.02,5.0]
[1736316353487,2.54549,197.03,197.02,5.0]
[1736316354492,2.54549,197.03,197.0,4.99999883]
[1736316354493,0.12549,197.02,197.0,4.99999883]
[1736316354995,0.12549,197.02,197.01,9.99999883]
[1736316356305,0.12549,197.02,197.0,4.99999883]
[1736316356483,0.12549,196.99,196.97,4.99999883]
[1736316356800,0.12549,196.99,196.98,9.99999883]
[1736316358509,20.0,197.02,197.01,9.99999883]
[1736316359393,0.12549,197.02,197.01,9.99999883]
[1736316360378,20.12549,197.02,197.01,4.99999883]
[1736316361080,20.12549,197.02,197.01,9.99999883]
[1736316362698,0.12549,197.02,197.01,9.99999883]
[1736316366100,2.54549,197.02,197.01,9.99999883]
[1736316368277,0.12549,197.01,197.0,4.99999883]
[1736316368516,0.12549,197.01,196.99,4.99999883]
[1736316369316,0.12549,197.01,196.99,9.99999883]
[1736316369490,0.12549,197.01,197.0,5.0]
[1736316369809,0.12549,197.01,197.0,9.99999883]
[1736316370441,0.12549,197.01,196.99,9.99999883]
[1736316371116,0.12549,197.01,197.0,4.99999883]
[1736316371331,0.12549,197.01,197.0,9.99999883]
[1736316372237,0.12549,197.01,197.0,4.99999883]
[1736316372404,0.12549,197.01,197.0,9.99999883]
[1736316373016,0.12549,197.01,197.0,4.99999883]
[1736316373200,0.12549,197.01,196.99,4.99999883]
[1736316373411,0.12549,197.01,197.0,9.99999883]
[1736316374625,0.12549,197.01,196.99,9.99999883]
[1736316374833,2.54549,197.0,196.99,9.99999883]
[1736316375334,2.54549,197.0,196.97,4.99999883]
[1736316375335,0.12549,196.99,196.97,4.99999883]
[1736316375521,0.12549,196.99,196.95,4.99999883]
[1736316375715,30.12549,196.99,196.95,9.99999883]
[1736316376140,30.12549,196.99,196.95,4.99999883]
[1736316376396,30.12549,196.99,196.96,9.99999883]
[1736316376932,20.12549,196.97,196.96,5.0]
[1736316377129,20.12549,196.96,196.94,9.99999883]
[1736316377330,0.12549,196.93,196.91,9.99999883]
[1736316377533,0.12549,196.91,196.89,16.53909883]
[1736316378139,0.12549,196.91,196.89,4.99999883]
[1736316378346,0.12549,196.91,196.9,9.99999883]
[1736316382448,0.12549,196.95,196.94,4.99999883]
[1736316382619,2.54549,196.95,196.94,4.99999883]
[1736316383222,2.54549,196.95,196.91,9.99999883]
[1736316383435,2.54549,196.95,196.93,4.99999883]
[1736316383643,2.54549,196.95,196.92,4.99999883]
[1736316384021,0.12549,196.92,196.91,4.99999883]
[1736316384221,20.12549,196.9,196.88,4.99999883]
[1736316384545,20.12549,196.9,196.87,4.99999883]
[1736316384726,20.12549,196.88,196.87,4.99999883]
[1736316384926,22.54549,196.88,196.87,4.99999883]
[1736316385141,22.54549,196.88,196.87,9.99999883]
[1736316385345,22.54549,196.88,196.87,4.99999883]
[1736316385732,22.54549,196.88,196.86,9.99999883]
[1736316385733,20.12549,196.87,196.86,9.99999883]
[1736316386846,0.12549,196.87,196.86,9.99999883]
[1736316387229,0.12549,196.87,196.86,33.77688283]
[1736316388821,20.0,196.94,196.87,23.776884]
[1736316389021,20.0,196.94,196.93,9.99999883]
[1736316389325,2.42,196.94,196.93,9.99999883]
[1736316389532,2.54549,196.94,196.93,9.99999883]
[1736316390444,22.54549,196.94,196.93,4.99999883]